fUSD/lending_fUSD_20240727
["ID","MTS","AMOUNT","RATE_DAILY","PERIOD"]
[333298486,1722042641283,-500.0,0.00010998,2]
[333298488,1722042641292,-500.0,0.00010998,2]
[333298490,1722042641302,-500.0,0.00010998,2]
[333298492,1722042641311,-500.0,0.00010998,2]
[333298494,1722042641321,-500.0,0.00010998,2]
[333298496,1722042641332,-500.0,0.00010998,2]
[333298498,1722042641341,-500.0,0.00010998,2]
[333298500,1722042641350,-500.0,0.00010998,2]
[333298502,1722042641360,-500.0,0.00010998,2]
[333298503,1722042641369,-500.0,0.00010998,2]
[333298505,1722042641378,-500.0,0.00010998,2]
[333298507,1722042641388,-500.0,0.00010998,2]
[333298509,1722042641398,-603.1,0.00010998,2]
[333298511,1722042641407,-500.0,0.00010998,2]
[333298512,1722042641416,-500.0,0.00010998,2]
[333298514,1722042641425,-500.0,0.00010998,2]
[333298516,1722042641434,-529.02,0.00010998,2]
[333298518,1722042641443,-500.0,0.00010998,2]
[333298519,1722042641453,-500.0,0.00010998,2]
[333298521,1722042641462,-500.0,0.00010998,2]
[333298523,1722042641475,-500.0,0.00010998,2]
[333298524,1722042641485,-504.83,0.00010998,2]
[333298526,1722042641495,-500.0,0.00010998,2]
[333298528,1722042641504,-500.0,0.00010998,2]
[333298530,1722042641515,-500.0,0.00010998,2]
[333298532,1722042641525,-624.75,0.00010998,2]
[333298533,1722042641534,-500.0,0.00010998,2]
[333298535,1722042641544,-500.0,0.00010998,2]
[333298537,1722042641554,-500.0,0.00010998,2]
[333298539,1722042641563,-500.0,0.00010998,2]
[333298540,1722042641573,-500.0,0.00010998,2]
[333298542,1722042641584,-500.0,0.00010998,2]
[333298544,1722042641594,-500.0,0.00010998,2]
[333298546,1722042641604,-500.0,0.00010998,2]
[333298547,1722042641613,-500.0,0.00010998,2]
[333298549,1722042641622,-596.42,0.00010998,2]
[333298551,1722042641632,-500.0,0.00010998,2]
[333298553,1722042641645,-500.0,0.00010998,2]
[333298554,1722042641654,-536.17,0.00010998,2]
[333298556,1722042641663,-500.0,0.00010998,2]
[333298558,1722042641673,-500.0,0.00010998,2]
[333298560,1722042641682,-500.0,0.00010998,2]
[333298562,1722042641694,-500.0,0.00010998,2]
[333298563,1722042641703,-500.0,0.00010998,2]
[333298565,1722042641713,-500.0,0.00010998,2]
[333298567,1722042641722,-500.0,0.00010998,2]
[333298569,1722042641733,-500.0,0.00010998,2]
[333298570,1722042641742,-500.0,0.00010998,2]
[333298572,1722042641752,-500.0,0.00010998,2]
[333298574,1722042641764,-503.60569702,0.00010998,2]
[333298576,1722042641773,-500.0,0.00010998,2]
[333298578,1722042641782,-500.0,0.00010998,2]
[333298579,1722042641792,-500.0,0.00010998,2]
[333298581,1722042641801,-500.0,0.00010998,2]
[333298583,1722042641811,-500.0,0.00010998,2]
[333298585,1722042641821,-500.0,0.00010998,2]
[333298587,1722042641830,-500.0,0.00010998,2]
[333298589,1722042641840,-503.80341362,0.00010998,2]
[333298591,1722042641849,-565.69,0.00010998,2]
[333298593,1722042641858,-507.76070711,0.00010998,2]
[333298595,1722042641868,-500.0,0.00010998,2]
[333298596,1722042641877,-500.0,0.00010998,2]
[333298598,1722042641887,-501.87505125,0.00010998,2]
[333298600,1722042641896,-501.06859918,0.00010998,2]
[333298601,1722042641905,-501.59850157,0.00010998,2]
[333298603,1722042641915,-500.0,0.00010998,2]
[333298605,1722042641925,-500.0,0.00010998,2]
[333298607,1722042641936,-500.0,0.00010998,2]
[333298609,1722042641946,-500.0,0.00010998,2]
[333298611,1722042641956,-500.0,0.00010998,2]
[333298612,1722042641965,-500.0,0.00010998,2]
[333298614,1722042641975,-500.0,0.00010998,2]
[333298616,1722042641983,-500.0,0.00010998,2]
[333298617,1722042641992,-502.25287289,0.00010998,2]
[333298619,1722042642001,-500.0,0.00010998,2]
[333298621,1722042642012,-500.59,0.00010998,2]
[333298623,1722042642022,-538.18,0.00010998,2]
[333298625,1722042642031,-500.0,0.00010998,2]
[333298626,1722042642041,-500.0,0.00010998,2]
[333298628,1722042642050,-500.0,0.00010998,2]
[333298630,1722042642060,-500.0,0.00010998,2]
[333298632,1722042642069,-500.0,0.00010998,2]
[333298634,1722042642079,-500.0,0.00010998,2]
[333298635,1722042642088,-45889.67991754,0.00010998,2]
[333298638,1722042642101,-939.20524716,0.00010998,2]
[333298639,1722042642111,-1496.18243083,0.00010998,2]
[333298641,1722042642122,-159.63480237,0.00010998,2]
[333298643,1722042642131,-386.77733913,0.00010998,2]
[333298645,1722042642143,-736.10038563,0.00010998,2]
[333298648,1722042642162,-1877.12227524,0.00010998,2]
[333298650,1722042642172,-307.12577824,0.00010999,2]
[333298651,1722042642183,-437.35446891,0.00010999,2]
[333298750,1722042643271,-300.0,9.9e-05,3]
[333298751,1722042643280,-48.04079335,0.0001,3]
[333298753,1722042643291,-257.08898764,0.0001,3]
[333298760,1722042643353,-294.87021901,0.0001,3]
[333298762,1722042643363,-62.64553109,0.00010999,2]
[333298763,1722042643373,-500.0,0.00010999,2]
[333298764,1722042643382,-500.0,0.00010999,2]
[333298765,1722042643392,-102.78831214,0.00010999,2]
[333298766,1722042643403,-397.21168786,0.00010999,2]
[333298767,1722042643412,-357.14,0.00010999,2]
[333298768,1722042643422,-647.47,0.00010999,2]
[333298769,1722042643431,-500.0,0.00010999,2]
[333298770,1722042643441,-403.04,0.00010999,2]
[333298771,1722042643450,-500.0,0.00010999,2]
[333298772,1722042643459,-500.0,0.00010999,2]
[333298773,1722042643468,-500.0,0.00010999,2]
[333298774,1722042643478,-500.0,0.00010999,2]
[333298775,1722042643488,-500.0,0.00010999,2]
[333298776,1722042643499,-500.0,0.00010999,2]
[333298777,1722042643510,-448.86417022,0.00010999,2]
[333298778,1722042643522,-51.13582978,0.00010999,2]
[333298779,1722042643532,-500.0,0.00010999,2]
[333298780,1722042643541,-149.97417022,0.00010999,2]
[333298785,1722042643587,-531.30939888,0.00010385,2]
[333298787,1722042643596,-350.02582978,0.00010999,2]
[333298789,1722042643606,-500.0,0.00010999,2]
[333298790,1722042643615,-500.0,0.00010999,2]
[333298792,1722042643625,-388.76,0.00010999,2]
[333298794,1722042643634,-500.0,0.00010999,2]
[333298796,1722042643645,-500.0,0.00010999,2]
[333298798,1722042643656,-305.56055268,0.00010999,2]
[333298800,1722042643667,-47.53944732,0.00010999,2]
[333298802,1722042643676,-376.79844743,0.00010999,2]
[333299014,1722042646346,-900.0,0.000101,3]
[333299015,1722042646356,-123.20155257,0.00010999,2]
[333299016,1722042646365,-136.40259186,0.00010999,2]
[333299017,1722042646751,-363.59740814,0.00010999,2]
[333299018,1722042646760,-500.0,0.00010999,2]
[333299019,1722042646770,-500.0,0.00010999,2]
[333299020,1722042646779,-99.01671084,0.00010999,2]
[333299021,1722042646791,-104.19328916,0.00010999,2]
[333299022,1722042646800,-500.0,0.00010999,2]
[333299023,1722042646810,-500.0,0.00010999,2]
[333299024,1722042646819,-500.0,0.00010999,2]
[333299026,1722042646829,-500.0,0.00010999,2]
[333299028,1722042646839,-500.0,0.00010999,2]
[333299030,1722042646848,-306.36481731,0.00010999,2]
[333299032,1722042646859,-193.63518269,0.00010999,2]
[333299033,1722042646869,-500.0,0.00010999,2]
[333299034,1722042646878,-196.56481731,0.00010999,2]
[333299035,1722042646888,-303.43518269,0.00010999,2]
[333299036,1722042646897,-500.0,0.00010999,2]
[333299037,1722042646907,-500.0,0.00010999,2]
[333299038,1722042646916,-500.0,0.00010999,2]
[333299039,1722042646925,-491.62,0.00010999,2]
[333299040,1722042646934,-61.37527648,0.00010999,2]
[333299041,1722042646945,-438.62472352,0.00010999,2]
[333299042,1722042646955,-500.0,0.00010999,2]
[333299043,1722042646964,-500.0,0.00010999,2]
[333299044,1722042646973,-520.01,0.00010999,2]
[333299045,1722042646982,-500.0,0.00010999,2]
[333299046,1722042646992,-85.37853336,0.00010999,2]
[333299047,1722042647003,-414.62146664,0.00010999,2]
[333299048,1722042647013,-233.32814979,0.00010999,2]
[333299049,1722042647024,-266.67185021,0.00010999,2]
[333299050,1722042647033,-500.0,0.00010999,2]
[333299051,1722042647042,-129.061086,0.00010999,2]
[333299052,1722042647054,-370.938914,0.00010999,2]
[333299053,1722042647063,-500.0,0.00010999,2]
[333299054,1722042647072,-500.0,0.00010999,2]
[333299055,1722042647082,-500.0,0.00010999,2]
[333299056,1722042647091,-500.0,0.00010999,2]
[333299057,1722042647101,-374.69,0.00010999,2]
[333299058,1722042647110,-500.0,0.00010999,2]
[333299059,1722042647119,-500.0,0.00010999,2]
[333299060,1722042647128,-500.0,0.00010999,2]
[333299061,1722042647137,-592.03,0.00010999,2]
[333299062,1722042647147,-500.0,0.00010999,2]
[333299063,1722042647156,-309.41,0.00010999,2]
[333299064,1722042647165,-157.53609732,0.00010999,2]
[333299065,1722042647174,-626.07,0.00010999,2]
[333299066,1722042647183,-632.13,0.00010999,2]
[333299067,1722042647368,-236.87759772,0.00010999,2]
[333299068,1722042647377,-544.05,0.00010999,2]
[333299069,1722042647387,-544.05,0.00010999,2]
[333299070,1722042647396,-544.05,0.00010999,2]
[333299071,1722042647405,-182.95243232,0.00010999,2]
[333299072,1722042647417,-361.09756768,0.00010999,2]
[333299073,1722042647427,-544.05,0.00010999,2]
[333299074,1722042647436,-544.05,0.00010999,2]
[333299075,1722042647446,-544.05,0.00010999,2]
[333299076,1722042647455,-321.08600105,0.00010999,2]
[333299077,1722042647467,-222.96399895,0.00010999,2]
[333299078,1722042647477,-96.35316098,0.00010999,2]
[333299079,1722042648239,-1300.0,0.000102,3]
[333299080,1722042648249,-57.74938079,0.00010999,2]
[333299081,1722042648325,-254.08592998,0.00010999,2]
[333299131,1722043831753,-277.17,8.219e-05,2]
[333299132,1722043831763,-2.52657276,8.219e-05,2]
[333299133,1722043831775,-325.57342724,8.219e-05,2]
[333299134,1722043831784,-328.1,9.741e-05,2]
[333299135,1722043831794,-165.15101793,9.858e-05,2]
[333299136,1722043831805,-84.84898207,9.858e-05,2]
[333299137,1722043831814,-672.28270132,9.861e-05,2]
[333299138,1722043831825,-327.71729868,9.861e-05,2]
[333299139,1722043831836,-330.61445524,0.0001,2]
[333299140,1722043831918,-919.38554476,0.0001,2]
[333299141,1722043831928,-1800.31347189,0.00010385,2]
[333299142,1722043831937,-355.75,0.000104,2]
[333299143,1722043831946,-61.60098335,0.000104,2]
[333299144,1722043831957,-88.39901665,0.000104,2]
[333299145,1722043831968,-277.17,0.00010468,2]
[333299146,1722043831977,-150.0,0.00010729,2]
[333299147,1722043831987,-150.0,0.0001073,2]
[333299148,1722043832000,-150.0,0.00010731,2]
[333299149,1722043832009,-300.0,0.00010731,2]
[333299150,1722043832018,-300.0,0.00010731,2]
[333299151,1722043832027,-150.0,0.00010732,2]
[333299152,1722043832036,-518.28098335,0.00010732,2]
[333299153,1722043832047,-335.92939992,0.00010732,2]
[333299154,1722043832058,-348.89010204,0.00010732,2]
[333299155,1722043832078,-296.89951469,0.00010732,2]
[333299157,1722043832088,-150.0,0.00010737,2]
[333299159,1722043832098,-150.0,0.00010738,2]
[333299161,1722043832107,-150.0,0.00010739,2]
[333299163,1722043832116,-150.0,0.00010739,2]
[333299165,1722043832126,-150.0,0.0001074,2]
[333299167,1722043832135,-150.0,0.0001074,2]
[333299169,1722043832145,-150.0,0.00010742,2]
[333299170,1722043832154,-150.0,0.00010743,2]
[333299171,1722043832164,-150.0,0.00010745,2]
[333299172,1722043832173,-150.0,0.00010746,2]
[333299173,1722043832182,-150.0,0.00010747,2]
[333299174,1722043832195,-150.0,0.00010748,2]
[333299175,1722043832205,-150.0,0.00010748,2]
[333299176,1722043832214,-150.0,0.00010749,2]
[333299177,1722043832223,-150.0,0.00010753,2]
[333299178,1722043832232,-150.0,0.00010754,2]
[333299180,1722043832242,-150.0,0.00010754,2]
[333299181,1722043832254,-150.0,0.00010756,2]
[333299182,1722043832263,-150.0,0.00010756,2]
[333299183,1722043832272,-150.0,0.00010756,2]
[333299184,1722043832281,-150.0,0.00010762,2]
[333299185,1722043832291,-150.0,0.00010776,2]
[333299186,1722043832300,-150.0,0.00010777,2]
[333299187,1722043832309,-150.0,0.00010785,2]
[333299188,1722043832318,-150.0,0.00010786,2]
[333299189,1722043832327,-150.0,0.00010787,2]
[333299190,1722043832337,-150.0,0.0001079,2]
[333299191,1722043832346,-150.0,0.00010797,2]
[333299192,1722043832356,-1504.27976991,0.000108,2]
[333299193,1722043832364,-150.0,0.000108,2]
[333299194,1722043832374,-150.0,0.000108,2]
[333299195,1722043832383,-150.0,0.000108,2]
[333299196,1722043832393,-150.0,0.00010802,2]
[333299197,1722043832403,-150.0,0.00010805,2]
[333299198,1722043832412,-226.21611539,0.00010808,2]
[333299199,1722043832422,-150.0,0.0001081,2]
[333299200,1722043832431,-150.0,0.0001081,2]
[333299201,1722043832441,-150.0,0.00010813,2]
[333299202,1722043832450,-150.0,0.0001082,2]
[333299203,1722043832460,-150.0,0.00010822,2]
[333299204,1722043832470,-150.0,0.00010822,2]
[333299205,1722043832479,-300.0,0.00010824,2]
[333299206,1722043832488,-150.0,0.00010824,2]
[333299207,1722043832501,-150.0,0.00010826,2]
[333299208,1722043832510,-150.0,0.00010836,2]
[333299209,1722043832520,-150.0,0.00010838,2]
[333299210,1722043832529,-150.0,0.00010839,2]
[333299211,1722043832539,-150.0,0.00010846,2]
[333299212,1722043832548,-150.0,0.00010847,2]
[333299213,1722043832558,-625.63697401,0.00010851,2]
[333299214,1722043832567,-150.0,0.00010851,2]
[333299215,1722043832577,-150.0,0.00010852,2]
[333299216,1722043832586,-44.22839194,0.0001086,2]
[333299217,1722043832597,-105.77160806,0.0001086,2]
[333299218,1722043832606,-625.63697401,0.0001086,2]
[333299219,1722043832615,-150.0,0.00010862,2]
[333299220,1722043832625,-150.0,0.00010864,2]
[333299221,1722043832635,-150.0,0.00010864,2]
[333299222,1722043832644,-150.0,0.00010866,2]
[333299223,1722043832654,-150.0,0.00010869,2]
[333299224,1722043832663,-150.0,0.00010869,2]
[333299225,1722043832673,-150.0,0.00010871,2]
[333299226,1722043832683,-150.0,0.00010874,2]
[333299227,1722043832693,-150.0,0.00010876,2]
[333299228,1722043832703,-150.0,0.0001088,2]
[333299229,1722043832713,-150.0,0.00010881,2]
[333299230,1722043832722,-2331.50576369,0.00010882,2]
[333299231,1722043832732,-2331.50576361,0.00010883,2]
[333299232,1722043832741,-2.14989063,0.00010883,2]
[333299234,1722043837690,-150.0,0.00010795,2]
[333299235,1722043837701,-150.0,0.00010819,2]
[333299236,1722043837712,-150.0,0.0001082,2]
[333299238,1722043837722,-163.08419551,0.00010826,2]
[333299239,1722043837732,-150.0,0.0001083,2]
[333299240,1722043837743,-355.33032749,0.00010883,2]
[333299241,1722043837756,-268.15675589,0.00010883,2]
[333299242,1722043837767,-150.0,0.00010884,2]
[333299243,1722043837777,-484.35192435,0.00010885,2]
[333299248,1722043838148,-253.82491353,0.00010885,2]
[333299249,1722043838160,-322.27,0.00010885,2]
[333299250,1722043838171,-1271.05892573,0.00010885,2]
[333299251,1722043838181,-2331.50576361,0.00010886,2]
[333299253,1722043838193,-2331.50576361,0.00010887,2]
[333299255,1722043838203,-150.0,0.00010888,2]
[333299256,1722043838212,-150.0,0.00010888,2]
[333299257,1722043838222,-2331.50576361,0.00010888,2]
[333299258,1722043838232,-150.0,0.00010889,2]
[333299259,1722043838241,-2331.50576361,0.0001089,2]
[333299260,1722043838252,-150.0,0.00010891,2]
[333299261,1722043838262,-2331.50576361,0.00010891,2]
[333299262,1722043838271,-500.0,0.00010892,2]
[333299263,1722043838281,-2331.50576361,0.00010892,2]
[333299264,1722043838290,-2331.50576361,0.00010894,2]
[333299265,1722043838300,-150.0,0.00010894,2]
[333299266,1722043838309,-2331.50576361,0.00010895,2]
[333299267,1722043838318,-150.0,0.00010896,2]
[333299268,1722043838328,-2331.50576361,0.00010896,2]
[333299269,1722043838337,-2331.50576361,0.00010897,2]
[333299270,1722043838347,-6436.88343817,0.00010898,2]
[333299271,1722043838359,-1619.1175,0.00010898,2]
[333299272,1722043838371,-480.599973,0.00010898,2]
[333299273,1722043838383,-410.19142791,0.00010898,2]
[333299274,1722043838394,-2302.41280976,0.00010898,2]
[333299275,1722043838471,-6524.79817901,0.00010898,2]
[333299276,1722043838484,-535.37056582,0.00010898,2]
[333299277,1722043839651,-295.11161134,0.00010898,2]
[333299281,1722043839811,-6457.2,0.00010898,2]
[333299282,1722043839823,-1625.64412788,0.00010898,2]
[333299283,1722043839834,-248.81316711,0.00010898,2]
[333299284,1722043839844,-1369.28683291,0.00010899,2]
[333299285,1722043839856,-646.45003435,0.00010899,2]
[333299286,1722043839976,-315.76889635,0.00010899,2]
[333299287,1722043839985,-739.5697,0.00010899,2]
[333299288,1722043839995,-150.0,0.00010899,2]
[333299289,1722043840005,-794.66140365,0.00010899,2]
[333299290,1722043840017,-1382.64326385,0.00010899,2]
[333299291,1722043840028,-1299.68,0.00010899,2]
[333299292,1722043840040,-814.74037197,0.00010899,2]
[333299293,1722043840053,-3255.0,0.00010899,2]
[333299294,1722043840136,-328.56,0.00010899,2]
[333299295,1722043840148,-313.5436304,0.00010899,2]
[333299296,1722043840159,-979.78,0.00010899,2]
[333299297,1722043840170,-19357.00892852,0.00010899,2]
[333299311,1722043842595,-6504.10795429,0.00010899,2]
[333299315,1722043842607,-15218.45181012,0.00010899,2]
[333299321,1722043842739,-98064.00000015,0.00010899,2]
[333299322,1722043842750,-500.0,0.00010899,2]
[333299323,1722043842762,-3397.93999999,0.00010899,2]
[333299324,1722043842774,-93213.00624754,0.00010899,2]
[333299325,1722043842886,-1013.35977615,0.00010899,2]
[333299338,1722043845616,-6925.67894862,0.00010899,2]
[333299339,1722043845627,-670.71479205,0.00010899,2]
[333299340,1722043845782,-1082.04073439,0.00010899,2]
[333299341,1722043845793,-1503.09177721,0.00010899,2]
[333299342,1722043845956,-15730.51647615,0.00010899,2]
[333299343,1722043845968,-1972.63374859,0.00010899,2]
[333299344,1722043845980,-2116.83592838,0.00010899,2]
[333299345,1722043845992,-1212.87950928,0.00010899,2]
[333299670,1722044704502,170.0,0.00015,30]
[333299702,1722045031856,-265.57,8.219e-05,2]
[333299703,1722045031866,-261.49338007,8.219e-05,2]
[333299704,1722045031879,-0.98661993,8.219e-05,2]
[333299705,1722045031888,-309.66,9.691e-05,2]
[333299706,1722045031898,-1593.99867431,9.693e-05,2]
[333299707,1722045031912,-3476.12861861,9.693e-05,2]
[333299708,1722045031923,-845.39999995,9.693e-05,2]
[333299709,1722045032408,-1622.15927746,9.693e-05,2]
[333299710,1722045032419,-10122.50342967,9.693e-05,2]
[333299711,1722045032430,-200.0,9.725e-05,2]
[333299712,1722045032439,-4656.07,9.728e-05,2]
[333299713,1722045032449,-200.0,9.731e-05,2]
[333299714,1722045032458,-1852.42,9.732e-05,2]
[333299715,1722045032468,-262.48,9.741e-05,2]
[333299716,1722045032477,-169.56,9.758e-05,2]
[333299717,1722045032487,-349.49,9.759e-05,2]
[333299718,1722045032496,-150.99,9.759e-05,2]
[333299719,1722045032505,-1956.63,9.759e-05,2]
[333299720,1722045032515,-1000.0,9.764e-05,2]
[333299721,1722045032525,-6840.78,9.941e-05,2]
[333299722,1722045032534,-1250.0,0.0001,2]
[333299723,1722045032543,-642.34,0.00010141,2]
[333299724,1722045032554,-150.0,0.00010277,2]
[333299725,1722045032563,-533.86,0.00010278,2]
[333299726,1722045032573,-427.18,0.00010278,2]
[333299727,1722045032582,-150.88,0.00010278,2]
[333299728,1722045032592,-161.92,0.00010278,2]
[333299729,1722045032601,-335.45,0.00010278,2]
[333299730,1722045032611,-150.3,0.00010278,2]
[333299731,1722045032620,-714.1,0.00010278,2]
[333299732,1722045032630,-150.22,0.00010278,2]
[333299733,1722045032639,-151.01,0.00010278,2]
[333299734,1722045032648,-150.0,0.00010278,2]
[333299735,1722045032658,-425.65,0.00010278,2]
[333299736,1722045032668,-150.0,0.00010278,2]
[333299737,1722045032677,-150.0,0.00010278,2]
[333299738,1722045032687,-150.0,0.00010278,2]
[333299739,1722045032696,-150.0,0.00010278,2]
[333299740,1722045032706,-150.0,0.00010278,2]
[333299741,1722045032715,-150.0,0.00010278,2]
[333299742,1722045032724,-150.0,0.00010278,2]
[333299743,1722045032733,-425.65,0.00010278,2]
[333299744,1722045032966,-150.0,0.00010278,2]
[333299745,1722045032976,-150.0,0.00010278,2]
[333299746,1722045032985,-150.0,0.00010278,2]
[333299747,1722045032995,-150.0,0.00010278,2]
[333299748,1722045033004,-150.0,0.00010278,2]
[333299749,1722045033014,-150.0,0.00010278,2]
[333299750,1722045033025,-425.65,0.00010278,2]
[333299751,1722045033035,-150.0,0.00010278,2]
[333299752,1722045033045,-150.0,0.00010278,2]
[333299753,1722045033055,-425.65,0.00010278,2]
[333299754,1722045033065,-150.0,0.00010278,2]
[333299755,1722045033075,-150.0,0.00010278,2]
[333299756,1722045033085,-425.65,0.00010278,2]
[333299757,1722045033095,-425.65,0.00010278,2]
[333299758,1722045033106,-425.65,0.00010278,2]
[333299759,1722045033116,-150.99,0.00010388,2]
[333299760,1722045033127,-5071.31539655,0.00010389,2]
[333299761,1722045033138,-265.57,0.00010463,2]
[333299762,1722045033148,-1915.0,0.000106,2]
[333299763,1722045033158,-150.0,0.00010728,2]
[333299764,1722045033167,-150.0,0.00010733,2]
[333299765,1722045033178,-499.99,0.00010737,2]
[333299766,1722045033188,-2634.49,0.00010737,2]
[333299767,1722045033197,-150.0,0.00010741,2]
[333299768,1722045033207,-150.0,0.00010746,2]
[333299769,1722045033218,-150.0,0.00010746,2]
[333299770,1722045033227,-1631.63883234,0.00010754,2]
[333299771,1722045033237,-150.0,0.0001077,2]
[333299772,1722045033247,-150.0,0.00010772,2]
[333299773,1722045033257,-150.0,0.00010777,2]
[333299774,1722045033267,-150.0,0.00010777,2]
[333299775,1722045033276,-150.0,0.00010778,2]
[333299776,1722045033287,-150.0,0.00010788,2]
[333299777,1722045033296,-150.0,0.00010793,2]
[333299778,1722045033306,-150.0,0.00010796,2]
[333299779,1722045033316,-150.0,0.00010797,2]
[333299780,1722045033325,-1000.0,0.00010799,2]
[333299781,1722045033335,-6628.4085,0.00010799,2]
[333299782,1722045033345,-195.3275,0.00010799,2]
[333299783,1722045033355,-460.0182,0.00010799,2]
[333299784,1722045033365,-295.0755,0.00010799,2]
[333299785,1722045033374,-220.5737,0.00010799,2]
[333299786,1722045033383,-2983.743,0.00010799,2]
[333299787,1722045033392,-2132.45945232,0.00010799,2]
[333299788,1722045033402,-100000.0,0.000108,2]
[333299789,1722045033410,-3521.69,0.000108,2]
[333299790,1722045033419,-150.0,0.00010802,2]
[333299791,1722045033428,-150.0,0.00010809,2]
[333299792,1722045033437,-150.0,0.00010826,2]
[333299793,1722045033447,-150.0,0.00010827,2]
[333299794,1722045033456,-150.0,0.00010827,2]
[333299795,1722045033465,-150.0,0.00010832,2]
[333299796,1722045033474,-150.0,0.00010834,2]
[333299797,1722045033483,-150.0,0.0001084,2]
[333299798,1722045033491,-150.0,0.00010845,2]
[333299799,1722045033502,-150.0,0.0001085,2]
[333299800,1722045033511,-150.0,0.00010853,2]
[333299801,1722045033520,-150.0,0.00010862,2]
[333299802,1722045033529,-150.0,0.00010863,2]
[333299803,1722045033538,-150.0,0.00010865,2]
[333299804,1722045033547,-150.0,0.00010867,2]
[333299805,1722045033556,-150.0,0.0001087,2]
[333299806,1722045033565,-164.09492693,0.00010874,2]
[333299807,1722045033574,-1500.0,0.00010877,2]
[333299808,1722045033584,-150.0,0.00010877,2]
[333299809,1722045033593,-150.0,0.00010879,2]
[333299810,1722045033602,-150.0,0.00010885,2]
[333299811,1722045033611,-1511.84002796,0.00010889,2]
[333299812,1722045033620,-150.0,0.00010891,2]
[333299813,1722045033629,-7487.4182,0.00010898,2]
[333299814,1722045033638,-5510.34,0.00010899,2]
[333299815,1722045033647,-1000.0,0.00010899,2]
[333299816,1722045033657,-74251.24325183,0.00010899,2]
[333299817,1722045033666,-230.733356,0.00010899,2]
[333299818,1722045033675,-151.664454,0.00010899,2]
[333299819,1722045033683,-151.0,0.00010899,2]
[333299820,1722045033692,-155.955389,0.00010899,2]
[333299821,1722045033700,-399.439279,0.00010899,2]
[333299822,1722045033709,-399.439279,0.00010899,2]
[333299823,1722045033719,-151.0,0.00010899,2]
[333299824,1722045033729,-151.604268,0.00010899,2]
[333299825,1722045033738,-151.0,0.00010899,2]
[333299826,1722045033748,-151.0,0.00010899,2]
[333299827,1722045033758,-153.708269,0.00010899,2]
[333299828,1722045033769,-151.681941,0.00010899,2]
[333299829,1722045033779,-151.681941,0.00010899,2]
[333299830,1722045033789,-151.160389,0.00010899,2]
[333299831,1722045033799,-184.23300028,0.00010899,2]
[333299832,1722045033808,-151.0,0.00010899,2]
[333299833,1722045033818,-151.0,0.00010899,2]
[333299834,1722045033827,-151.0,0.00010899,2]
[333299835,1722045033842,-151.760364,0.00010899,2]
[333299836,1722045033851,-151.0,0.00010899,2]
[333299837,1722045033861,-281.340296,0.00010899,2]
[333299838,1722045033871,-281.340296,0.00010899,2]
[333299839,1722045033882,-151.0,0.00010899,2]
[333299840,1722045033892,-151.0,0.00010899,2]
[333299841,1722045033902,-151.0,0.00010899,2]
[333299842,1722045033912,-151.0,0.00010899,2]
[333299843,1722045033922,-151.225939,0.00010899,2]
[333299844,1722045033932,-151.0,0.00010899,2]
[333299845,1722045033942,-200.831857,0.00010899,2]
[333299846,1722045033951,-200.831857,0.00010899,2]
[333299847,1722045033962,-151.0,0.00010899,2]
[333299848,1722045033973,-151.600831,0.00010899,2]